[Event "Live Chess"]
[Site "Chess.com"]
[Date "2024.06.02"]
[Round "-"]
[White "Mikhail_Golubev"]
[Black "CheckThis4"]
[Result "0-1"]
[WhiteElo "2569"]
[BlackElo "2693"]
[TimeControl "300"]
[EndTime "19:21:36 PDT"]
[Termination "CheckThis4 won by resignation"]

1. e4 {[%clk 0:04:55]} 1... c5 {[%clk 0:04:56.9]} 2. Nf3 {[%clk 0:04:53.4]} 2...
Nc6 {[%clk 0:04:54.9]} 3. Nc3 {[%clk 0:04:51.8]} 3... g6 {[%clk 0:04:52.9]} 4.
d4 {[%clk 0:04:50.7]} 4... cxd4 {[%clk 0:04:52.2]} 5. Nxd4 {[%clk 0:04:50.6]}
5... Bg7 {[%clk 0:04:51.5]} 6. Be3 {[%clk 0:04:50.2]} 6... Nf6 {[%clk
0:04:48.4]} 7. Nxc6 {[%clk 0:04:49.2]} 7... bxc6 {[%clk 0:04:45.6]} 8. e5 {[%clk
0:04:48.1]} 8... Nd5 {[%clk 0:04:41.9]} 9. Nxd5 {[%clk 0:04:46.6]} 9... cxd5
{[%clk 0:04:41.8]} 10. Qxd5 {[%clk 0:04:45.4]} 10... Rb8 {[%clk 0:04:40.5]} 11.
O-O-O {[%clk 0:04:45]} 11... Bb7 {[%clk 0:04:35.5]} 12. Qd2 {[%clk 0:04:43.1]}
12... Bc6 {[%clk 0:04:28.3]} 13. Bd4 {[%clk 0:04:31.2]} 13... O-O {[%clk
0:04:21]} 14. f4 {[%clk 0:04:18.8]} 14... Qc7 {[%clk 0:04:01.3]} 15. h4 {[%clk
0:04:15.6]} 15... h5 {[%clk 0:03:59.1]} 16. Rh3 {[%clk 0:04:13.9]} 16... Rfc8
{[%clk 0:03:46.8]} 17. Ra3 {[%clk 0:03:57.8]} 17... Be4 {[%clk 0:03:40]} 18. Bd3
{[%clk 0:03:45.4]} 18... Qc6 {[%clk 0:03:31.8]} 19. Rc3 {[%clk 0:03:16.3]} 19...
Qd5 {[%clk 0:03:19.3]} 20. Bxe4 {[%clk 0:03:05.3]} 20... Qxe4 {[%clk 0:03:11]}
21. Rxc8+ {[%clk 0:02:33]} 21... Rxc8 {[%clk 0:03:08.8]} 22. c3 {[%clk
0:01:42.7]} 22... Rc6 {[%clk 0:02:48.6]} 23. g3 {[%clk 0:01:33.2]} 23... d6
{[%clk 0:02:44.6]} 24. Qd3 {[%clk 0:01:12.8]} 24... Qd5 {[%clk 0:02:32.4]} 25.
exd6 {[%clk 0:01:03]} 25... Rxd6 {[%clk 0:02:27.9]} 26. Kb1 {[%clk 0:00:52.2]}
26... Bxd4 {[%clk 0:02:22.2]} 27. cxd4 {[%clk 0:00:50.5]} 27... e6 {[%clk
0:02:15.9]} 28. a3 {[%clk 0:00:46.8]} 28... Rb6 {[%clk 0:02:13.4]} 29. Rc1
{[%clk 0:00:40.6]} 29... Rb3 {[%clk 0:02:08.3]} 30. Rc3 {[%clk 0:00:36.1]} 30...
Qh1+ {[%clk 0:01:55.6]} 31. Ka2 {[%clk 0:00:33.8]} 31... Rb8 {[%clk 0:01:54.1]}
32. Qc4 {[%clk 0:00:31.8]} 32... Qg2 {[%clk 0:01:46.9]} 33. Rb3 {[%clk
0:00:30.5]} 33... Rd8 {[%clk 0:01:37.4]} 34. Rb7 {[%clk 0:00:23.5]} 34... Qxb7
{[%clk 0:01:33.9]} 0-1

[Event "Live Chess"]
[Site "Chess.com"]
[Date "2024.06.02"]
[Round "-"]
[White "IgorSchukin"]
[Black "booktrunk"]
[Result "1-0"]
[WhiteElo "1762"]
[BlackElo "1515"]
[TimeControl "300"]
[EndTime "19:22:20 PDT"]
[Termination "IgorSchukin won by resignation"]

1. e4 {[%clk 0:04:57.5]} 1... b6 {[%clk 0:04:57]} 2. Nc3 {[%clk 0:04:44]} 2...
Bb7 {[%clk 0:04:56.9]} 3. d4 {[%clk 0:04:42.3]} 3... e6 {[%clk 0:04:55.3]} 4.
Bd3 {[%clk 0:04:40.5]} 4... h6 {[%clk 0:04:37.9]} 5. Nf3 {[%clk 0:04:22.6]} 5...
Nf6 {[%clk 0:04:37.8]} 6. O-O {[%clk 0:04:20.8]} 6... Bb4 {[%clk 0:04:37.5]} 7.
Re1 {[%clk 0:04:17.2]} 7... O-O {[%clk 0:04:33.5]} 8. h3 {[%clk 0:04:15.6]} 8...
Bxc3 {[%clk 0:04:27]} 9. bxc3 {[%clk 0:04:13.9]} 9... d6 {[%clk 0:04:26.5]} 10.
Bf4 {[%clk 0:04:11.5]} 10... Nbd7 {[%clk 0:04:24.8]} 11. Qd2 {[%clk 0:04:10]}
11... e5 {[%clk 0:04:14.5]} 12. Bxh6 {[%clk 0:04:06.3]} 12... gxh6 {[%clk
0:04:10.8]} 13. Qxh6 {[%clk 0:04:05]} 13... Qe7 {[%clk 0:04:07.1]} 14. Ng5
{[%clk 0:03:59.9]} 14... Rfd8 {[%clk 0:03:55.8]} 15. Re3 {[%clk 0:03:57.6]}
15... Nf8 {[%clk 0:03:54.4]} 16. Rg3 {[%clk 0:03:55]} 16... Ng6 {[%clk
0:03:53.2]} 17. Nxf7 {[%clk 0:03:43.2]} 17... Kxf7 {[%clk 0:03:32.8]} 18. Rxg6
{[%clk 0:03:33.8]} 18... Ke8 {[%clk 0:03:30]} 19. Rxf6 {[%clk 0:03:30.7]} 19...
Kd7 {[%clk 0:03:28]} 20. Qg6 {[%clk 0:03:18.9]} 20... Kc8 {[%clk 0:03:26.4]} 21.
Rf7 {[%clk 0:03:13.9]} 21... Qe8 {[%clk 0:03:22.7]} 22. Qg7 {[%clk 0:03:08.7]}
22... Rd7 {[%clk 0:03:16.8]} 23. Rf8 {[%clk 0:02:58.8]} 1-0

[Event "Live Chess"]
[Site "Chess.com"]
[Date "2024.06.02"]
[Round "-"]
[White "educatedlad"]
[Black "RafaelRony"]
[Result "1-0"]
[WhiteElo "1736"]
[BlackElo "1073"]
[TimeControl "300"]
[EndTime "19:22:31 PDT"]
[Termination "educatedlad won by resignation"]

1. e4 {[%clk 0:04:58.4]} 1... e6 {[%clk 0:04:56.4]} 2. Ne2 {[%clk 0:04:55.3]}
2... d5 {[%clk 0:04:48.4]} 3. d3 {[%clk 0:04:53.7]} 3... dxe4 {[%clk 0:04:47.2]}
4. dxe4 {[%clk 0:04:47.5]} 4... Qxd1+ {[%clk 0:04:47.1]} 5. Kxd1 {[%clk
0:04:46.5]} 5... e5 {[%clk 0:04:39.1]} 6. Nbc3 {[%clk 0:04:44.4]} 6... Nc6
{[%clk 0:04:37.1]} 7. Nd5 {[%clk 0:04:41.9]} 7... Be6 {[%clk 0:04:34.5]} 8.
Nxc7+ {[%clk 0:04:40.4]} 8... Kd8 {[%clk 0:04:31.8]} 9. Nxa8 {[%clk 0:04:39.5]}
9... Kc8 {[%clk 0:04:30.3]} 10. Nc3 {[%clk 0:04:36.9]} 10... Kb8 {[%clk
0:04:27]} 11. Nb6 {[%clk 0:04:34.1]} 11... axb6 {[%clk 0:04:24.4]} 12. Be3
{[%clk 0:04:32.4]} 12... Bb4 {[%clk 0:04:22.5]} 13. Bxb6 {[%clk 0:04:30.7]}
13... Bxc3 {[%clk 0:04:19.8]} 14. bxc3 {[%clk 0:04:30.6]} 1-0

[Event "Live Chess"]
[Site "Chess.com"]
[Date "2024.06.02"]
[Round "-"]
[White "KeithArkell"]
[Black "GwaryTek"]
[Result "1-0"]
[WhiteElo "2439"]
[BlackElo "1914"]
[TimeControl "300"]
[EndTime "19:23:14 PDT"]
[Termination "KeithArkell won on time"]

1. d4 {[%clk 0:04:57.8]} 1... Nf6 {[%clk 0:04:57.5]} 2. Nf3 {[%clk 0:04:57.1]}
2... d5 {[%clk 0:04:56.3]} 3. c4 {[%clk 0:04:56.4]} 3... c6 {[%clk 0:04:55.3]}
4. Nc3 {[%clk 0:04:55.3]} 4... e6 {[%clk 0:04:54.3]} 5. cxd5 {[%clk 0:04:54]}
5... exd5 {[%clk 0:04:51.8]} 6. Qc2 {[%clk 0:04:52.5]} 6... Bd6 {[%clk 0:04:50]}
7. Bg5 {[%clk 0:04:51.8]} 7... Bg4 {[%clk 0:04:42.8]} 8. Ne5 {[%clk 0:04:49.4]}
8... Bh5 {[%clk 0:04:40.2]} 9. e3 {[%clk 0:04:48.1]} 9... Bg6 {[%clk 0:04:39.3]}
10. Bd3 {[%clk 0:04:47.1]} 10... Nbd7 {[%clk 0:04:37.5]} 11. Nxd7 {[%clk
0:04:45.5]} 11... Qxd7 {[%clk 0:04:34.2]} 12. Bxf6 {[%clk 0:04:44.8]} 12... gxf6
{[%clk 0:04:33.2]} 13. O-O {[%clk 0:04:43.2]} 13... O-O-O {[%clk 0:04:11.9]} 14.
Rac1 {[%clk 0:04:38]} 14... Kb8 {[%clk 0:04:10.2]} 15. a3 {[%clk 0:04:36]} 15...
Rhg8 {[%clk 0:04:06.2]} 16. g3 {[%clk 0:04:34.4]} 16... Qh3 {[%clk 0:03:57.3]}
17. Ne2 {[%clk 0:04:24.6]} 17... h5 {[%clk 0:03:52.7]} 18. Nf4 {[%clk
0:04:20.7]} 18... Bxf4 {[%clk 0:03:43.3]} 19. exf4 {[%clk 0:04:19.5]} 19... h4
{[%clk 0:03:39.6]} 20. Rce1 {[%clk 0:04:06.8]} 20... Rg7 {[%clk 0:01:48.9]} 21.
Bxg6 {[%clk 0:04:01.2]} 21... Rxg6 {[%clk 0:01:45.8]} 22. Re3 {[%clk 0:03:55.2]}
22... Rh8 {[%clk 0:00:16.8]} 23. Rfe1 {[%clk 0:02:37.4]} 23... hxg3 {[%clk
0:00:13.9]} 24. fxg3 {[%clk 0:02:34.6]} 24... Qg4 {[%clk 0:00:02.3]} 25. Re8+
{[%clk 0:02:32.9]} 25... Rxe8 {[%clk 0:00:00.3]} 26. Rxe8+ {[%clk 0:02:32.8]}
1-0

[Event "Live Chess"]
[Site "Chess.com"]
[Date "2024.06.02"]
[Round "-"]
[White "gobbles19"]
[Black "grillage"]
[Result "1-0"]
[WhiteElo "2250"]
[BlackElo "1854"]
[TimeControl "300"]
[EndTime "19:24:18 PDT"]
[Termination "gobbles19 won by resignation"]

1. Nf3 {[%clk 0:04:55.5]} 1... Nf6 {[%clk 0:04:57.8]} 2. c4 {[%clk 0:04:54]}
2... c5 {[%clk 0:04:48.3]} 3. g3 {[%clk 0:04:52.7]} 3... Nc6 {[%clk 0:04:45.4]}
4. Bg2 {[%clk 0:04:51.6]} 4... g6 {[%clk 0:04:45]} 5. O-O {[%clk 0:04:50.8]}
5... Bg7 {[%clk 0:04:44.5]} 6. d4 {[%clk 0:04:47.5]} 6... cxd4 {[%clk
0:04:43.2]} 7. Nxd4 {[%clk 0:04:47.4]} 7... Nxd4 {[%clk 0:04:39.8]} 8. Qxd4
{[%clk 0:04:47.3]} 8... O-O {[%clk 0:04:39.1]} 9. Nc3 {[%clk 0:04:46.5]} 9... d6
{[%clk 0:04:37.1]} 10. e4 {[%clk 0:04:39]} 10... Be6 {[%clk 0:04:31.7]} 11. Qd3
{[%clk 0:04:27.5]} 11... a6 {[%clk 0:04:30.4]} 12. Be3 {[%clk 0:04:23.9]} 12...
Qc7 {[%clk 0:04:23.1]} 13. Nd5 {[%clk 0:04:19.2]} 13... Bxd5 {[%clk 0:04:07.4]}
14. exd5 {[%clk 0:04:14.2]} 14... Ng4 {[%clk 0:04:01.5]} 15. Bd4 {[%clk
0:04:10.9]} 15... Bxd4 {[%clk 0:03:57.9]} 16. Qxd4 {[%clk 0:04:10]} 16... Nf6
{[%clk 0:03:54.3]} 17. Rfe1 {[%clk 0:04:06.1]} 17... Rfe8 {[%clk 0:03:52.9]} 18.
Rac1 {[%clk 0:04:03.6]} 18... Rac8 {[%clk 0:03:50.7]} 19. b4 {[%clk 0:03:57.8]}
19... a5 {[%clk 0:03:49.3]} 20. a3 {[%clk 0:03:55.4]} 20... axb4 {[%clk
0:03:48.5]} 21. axb4 {[%clk 0:03:55.3]} 21... Ra8 {[%clk 0:03:47.5]} 22. c5
{[%clk 0:03:52.6]} 22... Ra2 {[%clk 0:03:37]} 23. Qc4 {[%clk 0:03:34.2]} 23...
Rea8 {[%clk 0:03:30.9]} 24. Re2 {[%clk 0:03:30.8]} 24... Rxe2 {[%clk 0:03:23.5]}
25. Qxe2 {[%clk 0:03:30.7]} 25... dxc5 {[%clk 0:03:19.5]} 26. bxc5 {[%clk
0:03:28.4]} 26... Ra5 {[%clk 0:03:13.7]} 27. Qc4 {[%clk 0:03:23.5]} 27... h5
{[%clk 0:02:59.5]} 28. c6 {[%clk 0:03:06.1]} 28... bxc6 {[%clk 0:02:56.3]} 29.
dxc6 {[%clk 0:03:00.9]} 29... Ne8 {[%clk 0:02:51.4]} 30. Re1 {[%clk 0:02:49.4]}
30... e6 {[%clk 0:02:46.8]} 31. Rd1 {[%clk 0:02:45.4]} 31... Qb6 {[%clk
0:02:43]} 32. Qh4 {[%clk 0:02:10.4]} 32... Nc7 {[%clk 0:02:33.6]} 33. Qe7 {[%clk
0:01:58]} 33... Nd5 {[%clk 0:02:28.5]} 34. Bxd5 {[%clk 0:01:50.7]} 34... exd5
{[%clk 0:02:26.8]} 35. c7 {[%clk 0:01:47.4]} 35... Rc5 {[%clk 0:02:25.5]} 36.
Qd8+ {[%clk 0:01:40.2]} 36... Kg7 {[%clk 0:02:24.3]} 37. c8=Q {[%clk 0:01:39.2]}
1-0

[Event "Live Chess"]
[Site "Chess.com"]
[Date "2024.06.02"]
[Round "-"]
[White "booktrunk"]
[Black "Dhaydon19"]
[Result "0-1"]
[WhiteElo "1515"]
[BlackElo "2683"]
[TimeControl "300"]
[EndTime "19:26:41 PDT"]
[Termination "Dhaydon19 won by resignation"]

1. e4 {[%clk 0:04:49.3]} 1... e6 {[%clk 0:04:59.2]} 2. d4 {[%clk 0:04:40.3]}
2... d5 {[%clk 0:04:56.8]} 3. exd5 {[%clk 0:04:37.6]} 3... exd5 {[%clk
0:04:55.9]} 4. Nf3 {[%clk 0:04:36.5]} 4... Nf6 {[%clk 0:04:55.5]} 5. Bd3 {[%clk
0:04:34.5]} 5... Be7 {[%clk 0:04:54.9]} 6. O-O {[%clk 0:04:32.9]} 6... O-O
{[%clk 0:04:54.4]} 7. Ne5 {[%clk 0:04:28.3]} 7... c6 {[%clk 0:04:53.6]} 8. Qf3
{[%clk 0:04:26.2]} 8... Nbd7 {[%clk 0:04:52.8]} 9. Nxd7 {[%clk 0:04:24.3]} 9...
Bxd7 {[%clk 0:04:50.4]} 10. Bf5 {[%clk 0:04:21.6]} 10... Re8 {[%clk 0:04:48.7]}
11. Bxd7 {[%clk 0:04:20.2]} 11... Qxd7 {[%clk 0:04:47.8]} 12. Nc3 {[%clk
0:04:17.2]} 12... Bd6 {[%clk 0:04:46.8]} 13. Bf4 {[%clk 0:04:14.9]} 13... Bxf4
{[%clk 0:04:44.7]} 14. Qxf4 {[%clk 0:04:13.4]} 14... Ne4 {[%clk 0:04:44]} 15.
Nxe4 {[%clk 0:04:11.7]} 15... Rxe4 {[%clk 0:04:43.4]} 16. Qd2 {[%clk 0:04:10.1]}
16... Rae8 {[%clk 0:04:42.1]} 17. c3 {[%clk 0:04:08.6]} 17... Re2 {[%clk
0:04:40.6]} 18. Qc1 {[%clk 0:04:04.9]} 18... Qd6 {[%clk 0:04:35.8]} 19. Rb1
{[%clk 0:04:03.5]} 19... a5 {[%clk 0:04:33.9]} 20. Qg5 {[%clk 0:04:00.7]} 20...
h6 {[%clk 0:04:30.2]} 21. Qg3 {[%clk 0:03:59.4]} 21... Qe7 {[%clk 0:04:24.3]}
22. Qd3 {[%clk 0:03:52.7]} 22... a4 {[%clk 0:04:21.4]} 23. a3 {[%clk 0:03:50.6]}
23... b5 {[%clk 0:04:19]} 24. h3 {[%clk 0:03:42.3]} 24... Qg5 {[%clk 0:04:16.2]}
25. Qf3 {[%clk 0:03:31.9]} 25... Qg6 {[%clk 0:04:13.1]} 26. Kh2 {[%clk
0:03:21.6]} 26... h5 {[%clk 0:04:11.2]} 27. Qg3 {[%clk 0:03:17.3]} 27... Qf5
{[%clk 0:04:07.1]} 28. Qc7 {[%clk 0:03:14.6]} 28... R8e6 {[%clk 0:04:05]} 29.
Qc8+ {[%clk 0:03:10.9]} 29... Kh7 {[%clk 0:04:02.3]} 30. Qc7 {[%clk 0:03:05.6]}
30... Rg6 {[%clk 0:03:58.1]} 31. Qd8 {[%clk 0:02:42]} 31... Rxf2 {[%clk
0:03:53.1]} 32. Rxf2 {[%clk 0:02:39.8]} 32... Qxf2 {[%clk 0:03:52]} 33. Rg1
{[%clk 0:02:34.8]} 33... Rg3 {[%clk 0:03:44.5]} 34. Qh4 {[%clk 0:02:26.9]} 34...
Rxg2+ {[%clk 0:03:42.6]} 0-1

[Event "Live Chess"]
[Site "Chess.com"]
[Date "2024.06.02"]
[Round "-"]
[White "NeilDruggan73"]
[Black "MagnersCarlsberg2870"]
[Result "1-0"]
[WhiteElo "1787"]
[BlackElo "1807"]
[TimeControl "300"]
[EndTime "19:28:54 PDT"]
[Termination "NeilDruggan73 won on time"]

1. d4 {[%clk 0:04:57]} 1... Nf6 {[%clk 0:04:57.3]} 2. Bg5 {[%clk 0:04:55.3]}
2... Ne4 {[%clk 0:04:52.2]} 3. h4 {[%clk 0:04:53]} 3... Nxg5 {[%clk 0:04:51.1]}
4. hxg5 {[%clk 0:04:51]} 4... c6 {[%clk 0:04:49.8]} 5. Nf3 {[%clk 0:04:47.2]}
5... Qb6 {[%clk 0:04:46]} 6. Nbd2 {[%clk 0:04:32.9]} 6... Qxb2 {[%clk
0:04:40.6]} 7. e3 {[%clk 0:04:31.8]} 7... d5 {[%clk 0:04:39.2]} 8. Rb1 {[%clk
0:04:25.6]} 8... Qxa2 {[%clk 0:04:37.4]} 9. g6 {[%clk 0:04:24.7]} 9... fxg6
{[%clk 0:04:35.4]} 10. Ne5 {[%clk 0:04:21.5]} 10... Nd7 {[%clk 0:04:29.6]} 11.
Nxg6 {[%clk 0:04:19.5]} 11... Rg8 {[%clk 0:04:21.4]} 12. Rxh7 {[%clk 0:04:16.6]}
12... Nf6 {[%clk 0:04:18.9]} 13. Rh4 {[%clk 0:04:08.5]} 13... Bf5 {[%clk
0:04:17.3]} 14. Bd3 {[%clk 0:03:54.7]} 14... Bxd3 {[%clk 0:04:04.2]} 15. cxd3
{[%clk 0:03:52.7]} 15... O-O-O {[%clk 0:03:53.9]} 16. Ra1 {[%clk 0:03:46.9]}
16... Qb2 {[%clk 0:03:47.5]} 17. Rxa7 {[%clk 0:03:44]} 17... Kb8 {[%clk
0:03:46.5]} 18. Ra1 {[%clk 0:03:38.6]} 18... e6 {[%clk 0:03:40.8]} 19. Rb1
{[%clk 0:03:37]} 19... Qa3 {[%clk 0:03:36.8]} 20. Rb3 {[%clk 0:03:30.4]} 20...
Qa5 {[%clk 0:03:31.5]} 21. Qb1 {[%clk 0:03:22.7]} 21... b5 {[%clk 0:03:28.3]}
22. Ke2 {[%clk 0:03:16.4]} 22... Nd7 {[%clk 0:03:14.9]} 23. Qc1 {[%clk
0:03:02.1]} 23... Kb7 {[%clk 0:03:10.9]} 24. Qb2 {[%clk 0:02:41.9]} 24... Qb6
{[%clk 0:02:55.8]} 25. Rh1 {[%clk 0:02:20.1]} 25... Bd6 {[%clk 0:02:52]} 26. f4
{[%clk 0:02:16.2]} 26... Ra8 {[%clk 0:02:47.7]} 27. Rc1 {[%clk 0:02:12.3]} 27...
Ra4 {[%clk 0:02:24.7]} 28. Qc2 {[%clk 0:02:07.9]} 28... Rga8 {[%clk 0:02:20.8]}
29. Kf3 {[%clk 0:01:58.4]} 29... Ra2 {[%clk 0:02:18.7]} 30. Rb2 {[%clk
0:01:45.7]} 30... Rxb2 {[%clk 0:02:14.4]} 31. Qxb2 {[%clk 0:01:45.5]} 31... Ba3
{[%clk 0:02:12.9]} 32. Qc2 {[%clk 0:01:40.1]} 32... Bxc1 {[%clk 0:02:11.4]} 33.
Qxc1 {[%clk 0:01:39.8]} 33... Ra2 {[%clk 0:02:08.2]} 34. Nb3 {[%clk 0:01:38]}
34... Qa6 {[%clk 0:01:58.3]} 35. Nf8 {[%clk 0:01:29.2]} 35... Ra3 {[%clk
0:01:51.3]} 36. Nxd7 {[%clk 0:01:23.9]} 36... Kc8 {[%clk 0:01:46.5]} 37. Nbc5
{[%clk 0:01:19.2]} 37... Qa5 {[%clk 0:01:36.6]} 38. Ne5 {[%clk 0:01:15.2]} 38...
Ra1 {[%clk 0:01:33]} 39. Qc2 {[%clk 0:01:10.4]} 39... Rf1+ {[%clk 0:01:30.5]}
40. Kg4 {[%clk 0:01:06]} 40... Qe1 {[%clk 0:01:11.4]} 41. Nxe6 {[%clk
0:01:02.5]} 41... Qd1+ {[%clk 0:01:06]} 42. Qxd1 {[%clk 0:01:00.8]} 42... Rxd1
{[%clk 0:01:05]} 43. g3 {[%clk 0:00:58.4]} 43... b4 {[%clk 0:01:03.1]} 44. Nxc6
{[%clk 0:00:56.1]} 44... b3 {[%clk 0:01:01.5]} 45. Na7+ {[%clk 0:00:35.6]} 45...
Kb8 {[%clk 0:00:56.2]} 46. Nb5 {[%clk 0:00:33.9]} 46... b2 {[%clk 0:00:49.6]}
47. Na3 {[%clk 0:00:29.5]} 47... b1=Q {[%clk 0:00:47.7]} 48. Nxb1 {[%clk
0:00:27.5]} 48... Rxb1 {[%clk 0:00:46.8]} 49. Nxg7 {[%clk 0:00:26.9]} 49... Rb3
{[%clk 0:00:44.9]} 50. Ne6 {[%clk 0:00:18.1]} 50... Rxd3 {[%clk 0:00:43.7]} 51.
Nc5 {[%clk 0:00:17]} 51... Rxe3 {[%clk 0:00:42.2]} 52. f5 {[%clk 0:00:15.4]}
52... Re8 {[%clk 0:00:37.5]} 53. Kf4 {[%clk 0:00:13.6]} 53... Kc7 {[%clk
0:00:33.9]} 54. g4 {[%clk 0:00:11.8]} 54... Kd6 {[%clk 0:00:30.1]} 55. g5 {[%clk
0:00:11.3]} 55... Ke7 {[%clk 0:00:26.3]} 56. f6+ {[%clk 0:00:10.8]} 56... Kf7
{[%clk 0:00:24.3]} 57. Kf5 {[%clk 0:00:10.3]} 57... Re1 {[%clk 0:00:20.7]} 58.
g6+ {[%clk 0:00:09.5]} 58... Kf8 {[%clk 0:00:19.2]} 59. Ne6+ {[%clk 0:00:08.9]}
59... Rxe6 {[%clk 0:00:12.5]} 60. Kxe6 {[%clk 0:00:05.5]} 60... Ke8 {[%clk
0:00:11.4]} 61. g7 {[%clk 0:00:04.5]} 61... Kd8 {[%clk 0:00:09.9]} 62. g8=Q+
{[%clk 0:00:03.6]} 62... Kc7 {[%clk 0:00:09.2]} 63. Qf7+ {[%clk 0:00:03.2]}
63... Kb6 {[%clk 0:00:08.4]} 64. Qd7 {[%clk 0:00:02.9]} 64... Ka5 {[%clk
0:00:05.8]} 65. Qxd5+ {[%clk 0:00:01.8]} 65... Kb4 {[%clk 0:00:04.4]} 66. Qc5+
{[%clk 0:00:01.5]} 66... Kb3 {[%clk 0:00:02.8]} 67. d5 {[%clk 0:00:01.2]} 67...
Kb2 {[%clk 0:00:01.9]} 68. Ke5 {[%clk 0:00:00.9]} 68... Kb3 {[%clk 0:00:00.9]}
69. Ke4 {[%clk 0:00:00.6]} 69... Kb2 {[%clk 0:00:00.1]} 70. Kd3 {[%clk
0:00:00.3]} 1-0

[Event "Live Chess"]
[Site "Chess.com"]
[Date "2024.06.02"]
[Round "-"]
[White "RafaelRony"]
[Black "gobbles19"]
[Result "0-1"]
[WhiteElo "1064"]
[BlackElo "2250"]
[TimeControl "300"]
[EndTime "19:30:42 PDT"]
[Termination "gobbles19 won by resignation"]

1. e4 {[%clk 0:04:48.9]} 1... d6 {[%clk 0:04:55.2]} 2. d4 {[%clk 0:04:47.1]}
2... Nf6 {[%clk 0:04:54.7]} 3. Bd3 {[%clk 0:04:44.5]} 3... g6 {[%clk 0:04:54.1]}
4. Nf3 {[%clk 0:04:39.8]} 4... Bg7 {[%clk 0:04:53.6]} 5. c4 {[%clk 0:04:38.1]}
5... Na6 {[%clk 0:04:51.2]} 6. Nc3 {[%clk 0:04:33.4]} 6... c5 {[%clk 0:04:48.7]}
7. d5 {[%clk 0:04:30.1]} 7... Nc7 {[%clk 0:04:47.6]} 8. a3 {[%clk 0:04:24.4]}
8... e6 {[%clk 0:04:43.9]} 9. O-O {[%clk 0:04:21.9]} 9... O-O {[%clk 0:04:42.9]}
10. Re1 {[%clk 0:04:17.6]} 10... exd5 {[%clk 0:04:41.4]} 11. exd5 {[%clk
0:04:17.1]} 11... Bg4 {[%clk 0:04:39.1]} 12. h3 {[%clk 0:04:15.9]} 12... Bxf3
{[%clk 0:04:38.4]} 13. Qxf3 {[%clk 0:04:15.3]} 13... Nd7 {[%clk 0:04:38]} 14.
Bf4 {[%clk 0:04:11.3]} 14... Ne5 {[%clk 0:04:35.2]} 15. Bxe5 {[%clk 0:04:07.8]}
15... Bxe5 {[%clk 0:04:35.1]} 16. Bc2 {[%clk 0:04:05.6]} 16... f5 {[%clk
0:04:30]} 17. Rad1 {[%clk 0:03:59.9]} 17... Ne8 {[%clk 0:04:28.6]} 18. b4 {[%clk
0:03:40.4]} 18... b6 {[%clk 0:04:26]} 19. Re3 {[%clk 0:03:02.4]} 19... Rc8
{[%clk 0:04:17.7]} 20. Bb3 {[%clk 0:02:53.5]} 20... Nf6 {[%clk 0:04:08.1]} 21.
Rde1 {[%clk 0:02:45.3]} 21... Nh5 {[%clk 0:03:58.8]} 22. Qd1 {[%clk 0:02:21.6]}
22... Qf6 {[%clk 0:03:51.9]} 23. Qc2 {[%clk 0:02:17.9]} 23... Nf4 {[%clk
0:03:46.7]} 24. Ne2 {[%clk 0:02:02.5]} 24... Nxe2+ {[%clk 0:03:36.2]} 25. R3xe2
{[%clk 0:02:00.3]} 25... Qg5 {[%clk 0:03:27.7]} 26. Qc1 {[%clk 0:01:46.9]} 26...
f4 {[%clk 0:03:18.6]} 27. g3 {[%clk 0:01:39.3]} 27... Qf6 {[%clk 0:03:13.7]} 28.
Kh2 {[%clk 0:01:32.9]} 28... fxg3+ {[%clk 0:03:09.2]} 29. fxg3 {[%clk
0:01:31.2]} 29... Qf3 {[%clk 0:03:06.5]} 30. Qe3 {[%clk 0:01:04.2]} 30... Bxg3+
{[%clk 0:03:03.3]} 31. Kg1 {[%clk 0:01:02.7]} 0-1